fUST/lending_fUST_20240511
["ID","MTS","AMOUNT","RATE_DAILY","PERIOD"]
[326816638,1715430632030,-738.32909802,0.00020703,2]
[326816640,1715430632040,-1453.99588173,0.00020703,2]
[326816641,1715430632051,-2637.25044214,0.00020703,2]
[326816642,1715430632062,-1670.99319192,0.00020703,2]
[326816643,1715430632072,-1284.5294023,0.00020703,2]
[326816644,1715430632083,-2761.42464324,0.00020703,2]
[326816645,1715430632095,-429.64235704,0.00020703,2]
[326816646,1715430632154,-7003.60810354,0.00020703,2]
[326816709,1715430637923,-150.0,0.00019486,2]
[326816710,1715430637932,-5616.26047243,0.00020703,2]
[326816711,1715430638000,-1757.16259521,0.00020703,2]
[326816712,1715430638011,-1259.41545977,0.00020703,2]
[326816713,1715430638032,-438.469,0.00020703,2]
[326816894,1715430640139,-803.50534785,0.00020703,2]
[326816895,1715430640152,-9830.17479549,0.00020703,2]
[326816896,1715430640231,-1997.68963592,0.00020703,2]
[326816897,1715430640244,-752.84226243,0.00020703,2]
[326816920,1715430643127,-14115.1607996,0.00020703,2]
[326816921,1715430643137,-160.52966955,0.00020812,2]
[326816922,1715430643146,-1730.20061013,0.00020912,2]
[326816923,1715430643155,-735.64942142,0.00020912,2]
[326816924,1715430643166,-291.14020735,0.00020912,2]
[326816925,1715430643175,-158.20036641,0.00020912,2]
[326816926,1715430643184,-207.02451915,0.00020913,2]
[326816927,1715430643194,-2628.27156596,0.00020913,2]
[326816928,1715430643203,-3000.0,0.00021999,2]
[326816929,1715430643213,-3000.0,0.00021999,2]
[326816930,1715430643222,-3000.0,0.00021999,2]
[326816931,1715430643231,-3000.0,0.00021999,2]
[326816932,1715430643240,-635.05640388,0.00021999,2]
[326816933,1715430643252,-2364.94359612,0.00021999,2]
[326816934,1715430643261,-500.05640388,0.00022,2]
[326817060,1715430645970,-746.4,0.00020702,2]
[326817062,1715430645981,-3457.00671515,0.00020702,2]
[326817073,1715430646076,-2874.5013947,0.00020702,2]
[326817123,1715430895092,154.78330338,9.999e-05,2]
[326817125,1715431407757,154.78330338,9.999e-05,2]
[326817150,1715431832398,-1895.18893597,0.00017144,2]
[326817151,1715431832408,-9387.04651107,0.00017145,2]
[326817152,1715431832417,-701.44722507,0.00017151,2]
[326817153,1715431832427,-295.05723116,0.00017151,2]
[326817154,1715431832436,-2254.72344677,0.00017152,2]
[326817155,1715431832446,-24900.0,0.00017153,2]
[326817156,1715431832459,-153.23142213,0.00017898,2]
[326817157,1715431832468,-189.69444695,0.00018,2]
[326817158,1715431832478,-197.3145241,0.00018194,2]
[326817159,1715431832487,-155.30635425,0.00018289,2]
[326817160,1715431832498,-39266.08394581,0.0001829,2]
[326817294,1715431838303,-5739.28679862,0.0001829,2]
[326817365,1715431840408,-581.68038362,0.0001829,2]
[326817367,1715431840420,-11536.71776138,0.0001829,2]
[326817369,1715431840430,-205.54725,0.00018294,2]
[326817371,1715431840439,-197.31452409,0.00018446,2]
[326817373,1715431840449,-197.31452409,0.00018697,2]
[326817375,1715431840462,-197.31452409,0.00018949,2]
[326817376,1715431840471,-197.31452409,0.000192,2]
[326817378,1715431840480,-181.5,0.00019286,3]
[326817380,1715431840489,-544.5,0.00019286,3]
[326817382,1715431840500,-1000.0084,0.00019295,2]
[326817384,1715431840509,-1000.0084,0.00019295,2]
[326817386,1715431840518,-1000.0084,0.00019295,2]
[326817388,1715431840528,-1000.0084,0.00019295,2]
[326817391,1715431840540,-1000.0084,0.00019295,2]
[326817393,1715431840550,-1000.0084,0.00019295,2]
[326817395,1715431840559,-1000.0084,0.00019295,2]
[326817397,1715431840568,-1000.0084,0.00019295,2]
[326817400,1715431840577,-1000.0084,0.00019295,2]
[326817402,1715431840588,-1000.0084,0.00019295,2]
[326817404,1715431840598,-1000.0084,0.00019295,2]
[326817406,1715431840607,-1000.0084,0.00019295,2]
[326817408,1715431840617,-1000.0084,0.00019295,2]
[326817410,1715431840627,-1000.0084,0.00019295,2]
[326817412,1715431840636,-1000.0084,0.00019295,2]
[326817414,1715431840645,-1000.0084,0.00019295,2]
[326817415,1715431840654,-1000.0084,0.00019295,2]
[326817417,1715431840663,-1000.0084,0.00019295,2]
[326817419,1715431840672,-1000.0084,0.00019295,2]
[326817421,1715431840681,-1000.0084,0.00019295,2]
[326817423,1715431840691,-1000.0084,0.00019295,2]
[326817425,1715431840699,-1000.0084,0.00019295,2]
[326817427,1715431840709,-1000.0084,0.00019295,2]
[326817428,1715431840718,-1000.0084,0.00019295,2]
[326817430,1715431840727,-1000.0084,0.00019295,2]
[326817432,1715431840736,-1000.0084,0.00019295,2]
[326817434,1715431840746,-1000.0084,0.00019295,2]
[326817436,1715431840755,-1000.0084,0.00019295,2]
[326817438,1715431840765,-1000.0084,0.00019295,2]
[326817440,1715431840774,-1000.0084,0.00019295,2]
[326817442,1715431840784,-1000.0084,0.00019295,2]
[326817444,1715431840793,-196.91229778,0.00019295,2]
[326817464,1715431841581,-501.485992,0.00019295,2]
[326817502,1715433032651,-1895.18893597,0.00016636,2]
[326817503,1715433032661,-24900.0,0.00016637,2]
[326817504,1715433032671,-3000.0,0.00016728,2]
[326817505,1715433032680,-205.010108,0.0001741,2]
[326817506,1715433032689,-301.59845587,0.00017634,2]
[326817507,1715433032698,-163.71452413,0.00017634,2]
[326817508,1715433032707,-162.71094643,0.00017634,2]
[326817509,1715433032717,-1157.9324208,0.00017634,2]
[326817510,1715433032738,-1351.03018805,0.00017634,2]
[326817511,1715433032758,-2902.72511672,0.00017635,2]
[326817630,1715433038591,-4981.46653808,0.00017635,2]
[326817631,1715433038600,-582.93549912,0.00017644,2]
[326817632,1715433038609,-189.69444695,0.00018,2]
[326817633,1715433038618,-1077.0,0.00018,2]
[326817634,1715433038627,-251.81857805,0.00018265,2]
[326817635,1715433038639,-670.30750172,0.00018266,2]
[326817636,1715433038647,-154.77416006,0.00019,2]
[326817637,1715433038657,-208.42845868,0.00019113,2]
[326817638,1715433038666,-166.441025,0.00019178,2]
[326817639,1715433038675,-335.2921571,0.00019193,2]
[326817640,1715433038684,-363.0,0.00019283,3]
[326817641,1715433038693,-3683.0218131,0.00019292,2]
[326817642,1715433038702,-3683.0218131,0.00019292,2]
[326817643,1715433038711,-3683.0218131,0.00019292,2]
[326817644,1715433038720,-3683.0218131,0.00019292,2]
[326817645,1715433038729,-3683.0218131,0.00019292,2]
[326817646,1715433038738,-3683.0218131,0.00019292,2]
[326817647,1715433038747,-3683.0218131,0.00019292,2]
[326817648,1715433038755,-3683.0218131,0.00019292,2]
[326817649,1715433038764,-3683.0218131,0.00019292,2]
[326817650,1715433038773,-3683.0218131,0.00019292,2]
[326817651,1715433038782,-3683.0218131,0.00019292,2]
[326817652,1715433038791,-3683.0218131,0.00019292,2]
[326817653,1715433038800,-3683.0218131,0.00019292,2]
[326817654,1715433038810,-3683.0218131,0.00019292,2]
[326817655,1715433038819,-872.53131304,0.00019292,2]
[326817703,1715433616727,521.89035678,9.999e-05,2]
[326817750,1715434232854,-205.010108,0.00016488,2]
[326817751,1715434232864,-2631.19780464,0.00016612,2]
[326817752,1715434232875,-24900.0,0.00016613,2]
[326817753,1715434232884,-770.40255084,0.00017359,2]
[326817754,1715434232894,-5669.0457216,0.00017544,2]
[326817755,1715434232903,-1000.36359115,0.00017544,2]
[326817756,1715434232912,-701.68383945,0.00017545,2]
[326817757,1715434232921,-211.76357414,0.00017546,2]
[326817758,1715434232931,-49777.55703418,0.00017546,2]
[326818729,1715435431928,-157.41822702,0.00016385,2]
[326818731,1715435431938,-639.43905509,0.00016385,2]
[326818733,1715435431947,-59325.71232151,0.00016484,2]
[326818734,1715435431957,-24900.0,0.00016485,2]
[326818735,1715435431965,-253.5260195,0.00016519,2]
[326818736,1715435431974,-331.14189699,0.00017347,2]
[326818737,1715435431983,-208.42845868,0.00017466,2]
[326818738,1715435431993,-241.94041048,0.00017543,2]
[326818740,1715435432002,-204.94636995,0.00017544,2]
[326818742,1715435432012,-8423.06247782,0.00017546,2]
[326818927,1715436054034,230.09377,0.00014367,2]
[326818929,1715436286008,-1895.18893597,0.00015143,2]
[326818930,1715436286028,-9387.04651107,0.00015144,2]
[326818931,1715436286049,-190.67238123,0.00015148,2]
[326818932,1715436286070,-709.81846716,0.00015148,2]
[326818933,1715436286091,-2254.72344677,0.00015243,2]
[326818934,1715436286111,-160.52966955,0.00015248,2]
[326818935,1715436286131,-701.44722507,0.00015429,2]
[326818936,1715436286151,-155.30635425,0.0001543,2]
[326818937,1715436286171,-245.36700893,0.0001543,2]
[326818938,1715436326655,15700.11036159,9.999e-05,2]
[326818939,1715436337278,24900.0,0.0001461,2]
[326818940,1715436345291,-295.05723116,0.00015428,2]
[326818941,1715436345312,-2039.03000423,0.00015428,2]
[326818942,1715436345332,-413.14065694,0.00015428,2]
[326818943,1715436345353,-6639.82210767,0.00015429,2]
[326818944,1715436388061,-610.8769198,0.00015429,2]
[326818945,1715436388083,-22500.4230802,0.0001543,2]
[326818947,1715436615783,230.09377,0.00014646,2]
[326819014,1715436632599,-152.53790496,0.00015348,2]
[326819016,1715436632609,-4305.66883591,0.00015425,2]
[326819020,1715436632635,-5081.37767516,0.00015425,2]
[326819022,1715436632645,-62534.74731765,0.00015426,2]
[326819024,1715436632654,-1895.18893597,0.00015428,2]
[326819025,1715436632663,-306.3083692,0.00015448,2]
[326819026,1715436632673,-152.53790495,0.00016281,2]
[326819027,1715436632682,-621.0911588,0.00016382,2]
[326819028,1715436632691,-462.15644443,0.00016438,2]
[326819029,1715436632701,-22538.69262921,0.00016482,2]
[326819030,1715436632711,-152.53790495,0.00017213,2]
[326819031,1715436632720,-816.06536579,0.00017532,2]
[326819033,1715436632729,-189.69444695,0.00018,2]
[326819034,1715436632739,-152.53790495,0.00018146,2]
[326819036,1715436632748,-930.31002276,0.00018322,2]
[326819038,1715436632757,-309.38123752,0.00018323,2]
[326819040,1715436632767,-150.0,0.000189,2]
[326819042,1715436632776,-152.53790495,0.00019078,2]
[326819044,1715436632786,-38389.2885008,0.00019078,2]
[326819097,1715436640507,-1333.33100517,0.00019078,2]
[326819151,1715436646550,-774.27136864,0.00019078,2]
[326819290,1715437832557,-205.010109,0.00017278,2]
[326819291,1715437832566,-1895.18893597,0.00017297,2]
[326819292,1715437832575,-24900.0,0.00017298,2]
[326819293,1715437832586,-3000.0,0.00017468,2]
[326819294,1715437832596,-364.09682715,0.00018,2]
[326819296,1715437832605,-301.59845587,0.00018146,2]
[326819297,1715437832615,-163.71452413,0.00018146,2]
[326819299,1715437832624,-162.71094643,0.00018146,2]
[326819301,1715437832634,-1157.9324208,0.00018146,2]
[326819303,1715437832643,-1351.03018805,0.00018146,2]
[326819305,1715437832653,-2902.72511672,0.00018147,2]
[326819307,1715437832662,-833.42845868,0.0001866,2]
[326819309,1715437832672,-862.83211918,0.00019005,2]
[326819540,1715438412535,464.69,0.00010959,2]
[326819544,1715438431096,1448.69849891,0.0001,2]
[326819546,1715438463945,770.40255084,0.0001635,2]
[326819552,1715438674220,205.010108,0.00016956,2]
[326819568,1715439023736,744.92403791,0.000138,2]
[326819595,1715439031885,-180.48231517,0.00017044,2]
[326819597,1715439031895,-2631.19780464,0.00017142,2]
[326819599,1715439031904,-62534.74731765,0.00017143,2]
[326819601,1715439031916,-24900.0,0.00017144,2]
[326819603,1715439031925,-180.48231517,0.00017722,2]
[326819605,1715439031933,-189.69444695,0.00018,2]
[326819607,1715439031942,-874.18087044,0.00018168,2]
[326819869,1715439043375,-13.13450353,0.00018168,2]
[326819870,1715439043385,-2355.65102291,0.00018169,2]
[326819871,1715439043394,-203.7027306,0.0001817,2]
[326819892,1715439627378,24900.0,0.00016857,2]
[326819893,1715439650090,331.14189699,0.00016026,2]
[326819894,1715440101078,253.5260195,0.00015125,2]
[326819895,1715440197029,24900.0,0.00016782,2]
[326819938,1715440232191,-623.38464581,0.00017708,2]
[326819940,1715440232200,-189.37113585,0.00017709,2]
[326819942,1715440232209,-172.7942858,0.00017709,2]
[326819961,1715440232381,-9387.04651107,0.00017803,2]
[326819963,1715440232392,-59325.71232151,0.00017804,2]
[326819965,1715440232402,-7900.60135011,0.00017804,2]
[326819967,1715440232411,-241.94041048,0.00017808,2]
[326819969,1715440232421,-154.95351395,0.00017809,2]
[326819971,1715440232430,-40031.75120486,0.00017809,2]
[326819973,1715440232439,-189.69444695,0.00018,2]
[326819975,1715440232449,-833.42845868,0.00018077,2]
[326819976,1715440232458,-159.0,0.00018169,2]
[326819977,1715440232468,-8.06084354,0.0001817,2]
[326819978,1715440232477,-701.68383945,0.0001817,2]
[326819979,1715440232486,-5669.0457216,0.0001817,2]
[326819980,1715440232496,-201.59388037,0.00018171,2]
[326819981,1715440232505,-2601.22879423,0.00018171,2]
[326819982,1715440232514,-172.79428578,0.00018394,2]
[326819983,1715440232523,-198.81665897,0.00018887,2]
[326819984,1715440232533,-9794.68573093,0.00019005,2]
[326819985,1715440232542,-172.79428578,0.00019078,2]
[326819986,1715440232551,-987.97579698,0.00019078,2]
[326819987,1715440232560,-15058.10912539,0.00019078,2]
[326819988,1715440232570,-8698.04646151,0.00019174,2]
[326819989,1715440232579,-606.33901229,0.00019174,2]
[326819990,1715440232587,-335.27500649,0.00019174,2]
[326819991,1715440232596,-2462.93986855,0.00019174,2]
[326819992,1715440232605,-1679.73219039,0.00019174,2]
[326819993,1715440232614,-151.0,0.00019174,2]
[326819994,1715440232623,-403.916771,0.00019174,2]
[326819995,1715440232632,-403.916771,0.00019174,2]
[326819996,1715440232641,-169.421545,0.00019174,2]
[326819997,1715440232650,-169.421545,0.00019174,2]
[326819998,1715440232659,-152.757917,0.00019174,2]
[326819999,1715440232672,-151.0,0.00019174,2]
[326820000,1715440232681,-158.906292,0.00019174,2]
[326820001,1715440232690,-151.0,0.00019174,2]
[326820002,1715440232699,-158.906292,0.00019174,2]
[326820003,1715440232710,-155.951997,0.00019174,2]
[326820004,1715440232719,-151.0,0.00019174,2]
[326820005,1715440232727,-151.0,0.00019174,2]
[326820006,1715440232736,-299.84700718,0.00019175,2]
[326820008,1715440232748,-718.89573392,0.00019176,2]
[326820010,1715440232757,-204.94636995,0.00019176,2]
[326820012,1715440232766,-151.0,0.00019176,2]
[326820014,1715440232776,-151.0,0.00019176,2]
[326820016,1715440232785,-315.07707204,0.00019177,2]
[326820018,1715440232794,-1557.19282567,0.00019178,2]
[326820153,1715440276728,814.31981697,0.00012397,2]
[326820154,1715440277093,814.31981697,0.0001287,2]
[326820155,1715440277501,814.31981697,0.00012968,2]
[326820156,1715440277886,814.31981697,0.00013164,2]
[326820157,1715440278766,814.31981697,0.00013554,2]
[326820158,1715440279109,814.31981697,0.00013922,2]
[326820159,1715440279461,814.31981697,0.00014085,2]
[326820160,1715440279909,814.31981697,0.00014513,2]
[326820161,1715440280279,814.31981697,0.00014552,2]
[326820162,1715440280667,814.31981697,0.00014955,2]
[326820163,1715440281011,814.31981697,0.00015127,2]
[326820164,1715440282111,814.31981697,0.00015425,2]
[326820165,1715440282511,814.31981697,0.00015682,2]
[326820166,1715440282890,814.31981697,0.00016024,2]
[326820167,1715440283247,814.31981697,0.00016291,2]
[326820168,1715440283609,814.31981697,0.00016637,2]
[326820169,1715440283955,814.31981697,0.00016846,2]
[326820170,1715440409759,814.3198169,0.00015549,2]
[326820171,1715440410624,814.3198169,0.00015715,2]
[326820172,1715440410992,814.3198169,0.00016019,2]
[326820173,1715440411332,814.3198169,0.00016273,2]
[326820174,1715440412245,814.3198169,0.0001644,2]
[326820175,1715440412594,814.3198169,0.00016936,2]
[326820176,1715440484867,154.75239617,9.999e-05,2]
[326820177,1715440568864,814.319817,0.00016965,2]
[326820178,1715440689210,814.319817,0.00016942,2]
[326820179,1715440798918,153.23142213,0.00016953,2]
[326820180,1715440807052,2087.44057429,0.00016942,2]
[326820181,1715440810178,246.34353574,0.00016773,2]
[326820182,1715440822980,2094.78477836,0.00016942,2]
[326820183,1715440839108,1348.8162419,9.999e-05,2]
[326820184,1715440843304,1883.13174552,9.998e-05,2]
[326820185,1715440855154,465.48369792,9.999e-05,2]
[326820186,1715440868069,154.75239617,9.999e-05,2]
[326820187,1715440868303,522.32384593,9.999e-05,2]
[326820188,1715441123487,814.45408999,0.00016872,2]
[326820198,1715441338982,24900.0,0.00016489,2]
[326820199,1715441362575,462.15644443,0.00016438,2]
[326820291,1715441434904,-154.75239617,0.00017135,2]
[326820294,1715441434914,-814.4540899,0.00017136,2]
[326820297,1715441434923,-814.4540899,0.00017348,2]
[326820300,1715441434933,-187.58238841,0.00017479,2]
[326820303,1715441434943,-814.4540899,0.00017575,2]
[326820305,1715441434953,-433.93383374,0.00017878,2]
[326820308,1715441434963,-187.58238839,0.00017879,2]
[326820310,1715441434973,-814.4540899,0.0001793,2]
[326820312,1715441434982,-189.69444695,0.00018121,2]
[326820314,1715441434994,-309.38123752,0.00018122,2]
[326820316,1715441435004,-930.31002276,0.00018122,2]
[326820319,1715441435017,-187.58238839,0.00018279,2]
[326820321,1715441435031,-814.4540899,0.0001835,2]
[326820323,1715441435041,-814.4540899,0.00018556,2]
[326820325,1715441435050,-187.58238839,0.00018678,2]
[326820327,1715441435058,-736.8808948,0.000188,2]
[326820329,1715441435068,-814.4540899,0.00018828,2]
[326820330,1715441435078,-59325.71232151,0.00018899,2]
[326820332,1715441435087,-150.0,0.000189,2]
[326820335,1715441435097,-159.05332718,0.00018986,2]
[326820336,1715441435106,-814.4540899,0.00019,2]
[326820338,1715441435115,-158.38524908,0.00019076,2]
[326820341,1715441435124,-409.82935884,0.00019076,2]
[326820342,1715441435134,-314.98827974,0.00019076,2]
[326820344,1715441435143,-890.67521582,0.00019076,2]
[326820346,1715441435153,-292.04079477,0.00019076,2]
[326820348,1715441435162,-1092.09177518,0.00019076,2]
[326820351,1715441435172,-154.91736314,0.00019076,2]
[326820352,1715441435181,-1351.7263104,0.00019076,2]
[326820354,1715441435190,-1881.6796197,0.00019076,2]
[326820356,1715441435200,-294.51792014,0.00019077,2]
[326820358,1715441435209,-187.58238839,0.00019078,2]
[326820360,1715441435220,-7675.10846279,0.00019078,2]
[326820470,1715441441784,-39677.50570621,0.00019078,2]
[326820472,1715441441794,-449.89012991,0.00019153,2]
[326820474,1715441441805,-300.0,0.00019163,2]
[326820475,1715441441815,-15700.11036159,0.00019176,2]
[326820476,1715441441825,-9387.04651107,0.00019177,2]
[326820477,1715441441835,-1563.42697391,0.00019178,2]
[326820478,1715441441844,-3127.40257902,0.00019178,2]
[326820479,1715441441854,-3127.40257902,0.00019178,2]
[326820480,1715441441864,-3127.40257902,0.00019178,2]
[326820481,1715441441874,-3127.40257902,0.00019178,2]
[326820482,1715441441883,-3127.40257902,0.00019178,2]
[326820483,1715441441893,-3127.40257902,0.00019178,2]
[326820484,1715441441902,-3127.40257902,0.00019178,2]
[326820485,1715441441911,-3127.40257902,0.00019178,2]
[326820486,1715441441921,-3127.40257902,0.00019178,2]
[326820487,1715441441930,-3127.40257902,0.00019178,2]
[326820488,1715441441941,-3127.40257902,0.00019178,2]
[326820489,1715441441951,-3127.40257902,0.00019178,2]
[326820490,1715441441960,-3127.40257902,0.00019178,2]
[326820491,1715441441971,-3127.40257902,0.00019178,2]
[326820492,1715441441980,-3127.40257902,0.00019178,2]
[326820493,1715441441990,-3127.40257902,0.00019178,2]
[326820494,1715441442002,-3127.40257902,0.00019178,2]
[326820495,1715441442016,-3127.40257902,0.00019178,2]
[326820496,1715441442025,-3127.40257902,0.00019178,2]
[326820497,1715441442035,-3127.40257902,0.00019178,2]
[326820498,1715441442045,-3127.40257902,0.00019178,2]
[326820499,1715441442054,-3127.40257902,0.00019178,2]
[326820500,1715441442064,-3127.40257902,0.00019178,2]
[326820501,1715441442073,-3127.40257902,0.00019178,2]
[326820502,1715441442083,-3127.40257902,0.00019178,2]
[326820503,1715441442095,-3127.40257902,0.00019178,2]
[326820504,1715441442105,-3127.40257902,0.00019178,2]
[326820505,1715441442115,-3127.40257902,0.00019178,2]
[326820506,1715441442124,-3127.40257902,0.00019178,2]
[326820507,1715441442134,-3127.40257902,0.00019178,2]
[326820508,1715441442143,-3127.40257902,0.00019178,2]
[326820509,1715441442152,-3127.40257902,0.00019178,2]
[326820510,1715441442162,-3127.40257902,0.00019178,2]
[326820511,1715441442171,-3127.40257902,0.00019178,2]
[326820512,1715441442181,-3127.40257902,0.00019178,2]
[326820513,1715441442191,-3127.40257902,0.00019178,2]
[326820514,1715441442200,-3127.40257902,0.00019178,2]
[326820515,1715441442209,-3127.40257902,0.00019178,2]
[326820516,1715441442219,-3127.40257902,0.00019178,2]
[326820517,1715441442228,-3127.40257902,0.00019178,2]
[326820518,1715441442238,-3127.40257902,0.00019178,2]
[326820519,1715441442253,-3127.40257902,0.00019178,2]
[326820520,1715441442262,-3127.40257902,0.00019178,2]
[326820521,1715441442271,-3127.40257902,0.00019178,2]
[326820522,1715441442280,-3127.40257902,0.00019178,2]
[326820523,1715441442290,-3127.40257902,0.00019178,2]
[326820524,1715441442299,-3127.40257902,0.00019178,2]
[326820525,1715441442308,-3149.73440029,0.00019178,2]
[326820526,1715441442316,-3149.73440029,0.00019178,2]
[326820527,1715441442326,-3149.73440029,0.00019178,2]
[326820528,1715441442337,-3149.73440029,0.00019178,2]
[326820529,1715441442347,-3149.73440029,0.00019178,2]
[326820530,1715441442357,-3149.73440029,0.00019178,2]
[326820531,1715441442368,-3149.73440029,0.00019178,2]
[326820532,1715441442378,-3149.73440029,0.00019178,2]
[326820533,1715441442388,-3149.73440029,0.00019178,2]
[326820534,1715441442399,-3149.73440029,0.00019178,2]
[326820535,1715441442409,-3149.73440029,0.00019178,2]
[326820536,1715441442418,-3149.73440029,0.00019178,2]
[326820537,1715441442428,-3149.73440029,0.00019178,2]
[326820538,1715441442437,-3149.73440029,0.00019178,2]
[326820539,1715441442446,-3149.73440029,0.00019178,2]
[326820540,1715441442455,-3149.73440029,0.00019178,2]
[326820541,1715441442464,-3149.73440029,0.00019178,2]
[326820542,1715441442474,-3149.73440029,0.00019178,2]
[326820543,1715441442483,-3149.73440029,0.00019178,2]
[326820544,1715441442493,-3149.73440029,0.00019178,2]
[326820545,1715441442503,-3149.73440029,0.00019178,2]
[326820546,1715441442512,-3149.73440029,0.00019178,2]
[326820547,1715441442522,-3149.73440029,0.00019178,2]
[326820548,1715441442532,-3149.73440029,0.00019178,2]
[326820549,1715441442542,-3149.73440029,0.00019178,2]
[326820550,1715441442551,-3149.73440029,0.00019178,2]
[326820551,1715441442561,-3149.73440029,0.00019178,2]
[326820552,1715441442571,-3149.73440029,0.00019178,2]
[326820553,1715441442581,-3149.73440029,0.00019178,2]
[326820554,1715441442590,-3149.73440029,0.00019178,2]
[326820555,1715441442600,-3149.73440029,0.00019178,2]
[326820556,1715441442610,-3149.73440029,0.00019178,2]
[326820557,1715441442619,-3149.73440029,0.00019178,2]
[326820558,1715441442628,-3212.72908828,0.00019178,2]
[326820559,1715441442638,-3212.72908828,0.00019178,2]
[326820560,1715441442647,-3212.72908828,0.00019178,2]
[326820561,1715441442657,-3212.72908828,0.00019178,2]
[326820562,1715441442667,-3212.72908828,0.00019178,2]
[326820563,1715441442677,-3212.72908828,0.00019178,2]
[326820564,1715441442687,-3212.72908828,0.00019178,2]
[326820565,1715441442697,-3212.72908828,0.00019178,2]
[326820566,1715441442706,-3212.72908828,0.00019178,2]
[326820567,1715441442716,-3212.72908828,0.00019178,2]
[326820568,1715441442725,-161.195665,0.00019178,2]
[326820569,1715441442735,-167.148577,0.00019178,2]
[326820570,1715441442747,-167.148577,0.00019178,2]
[326820571,1715441442756,-167.148577,0.00019178,2]
[326820572,1715441442765,-167.148577,0.00019178,2]
[326820573,1715441442774,-167.148577,0.00019178,2]
[326820574,1715441442783,-167.148577,0.00019178,2]
[326820575,1715441442792,-167.148577,0.00019178,2]
[326820576,1715441442801,-167.148577,0.00019178,2]
[326820577,1715441442810,-167.148577,0.00019178,2]
[326820578,1715441442820,-167.148577,0.00019178,2]
[326820579,1715441442977,-167.148577,0.00019178,2]
[326820580,1715441442989,-167.148577,0.00019178,2]
[326820581,1715441443001,-167.148577,0.00019178,2]
[326820583,1715441443015,-167.148577,0.00019178,2]
[326820584,1715441443024,-167.148577,0.00019178,2]
[326820585,1715441443034,-167.148577,0.00019178,2]
[326820586,1715441443044,-167.148577,0.00019178,2]
[326820587,1715441443054,-167.148577,0.00019178,2]
[326820588,1715441443064,-167.148577,0.00019178,2]
[326820589,1715441443074,-167.148586,0.00019178,2]
[326820590,1715441443084,-151.0,0.00019178,2]
[326820591,1715441443093,-163.47007,0.00019178,2]
[326820592,1715441443103,-151.0,0.00019178,2]
[326820593,1715441443114,-151.0,0.00019178,2]
[326820594,1715441443124,-151.0,0.00019178,2]
[326820595,1715441443134,-151.0,0.00019178,2]
[326820596,1715441443143,-151.0,0.00019178,2]
[326820597,1715441443154,-204.876778,0.00019178,2]
[326820598,1715441443163,-151.0,0.00019178,2]
[326820599,1715441443172,-151.0,0.00019178,2]
[326820600,1715441443182,-151.0,0.00019178,2]
[326820601,1715441443191,-151.0,0.00019178,2]
[326820602,1715441443201,-151.0,0.00019178,2]
[326820603,1715441443211,-151.0,0.00019178,2]
[326820604,1715441443220,-151.0,0.00019178,2]
[326820605,1715441443229,-151.0,0.00019178,2]
[326820606,1715441443238,-151.0,0.00019178,2]
[326820607,1715441443250,-151.0,0.00019178,2]
[326820608,1715441443259,-173.864076,0.00019178,2]
[326820609,1715441443268,-151.0,0.00019178,2]
[326820610,1715441443277,-151.0,0.00019178,2]
[326820611,1715441443286,-151.0,0.00019178,2]
[326820612,1715441443295,-151.0,0.00019178,2]
[326820613,1715441443305,-151.0,0.00019178,2]
[326820614,1715441443316,-151.0,0.00019178,2]
[326820615,1715441443325,-151.0,0.00019178,2]
[326820616,1715441443334,-151.0,0.00019178,2]
[326820617,1715441443343,-151.0,0.00019178,2]
[326820618,1715441443353,-198.73474,0.00019178,2]
[326820619,1715441443362,-196.058026,0.00019178,2]
[326820620,1715441443371,-151.0,0.00019178,2]
[326820621,1715441443380,-276.577114,0.00019178,2]
[326820622,1715441443390,-151.0,0.00019178,2]
[326820623,1715441443400,-151.0,0.00019178,2]
[326820624,1715441443410,-151.0,0.00019178,2]
[326820625,1715441443420,-151.0,0.00019178,2]
[326820626,1715441443429,-151.0,0.00019178,2]
[326820627,1715441443439,-151.0,0.00019178,2]
[326820628,1715441443448,-151.0,0.00019178,2]
[326820629,1715441443458,-151.0,0.00019178,2]
[326820630,1715441443467,-151.0,0.00019178,2]
[326820631,1715441443476,-151.0,0.00019178,2]
[326820632,1715441443486,-151.0,0.00019178,2]
[326820633,1715441443497,-151.0,0.00019178,2]
[326820634,1715441443506,-151.0,0.00019178,2]